bitfinex-derivatives/quotes_ETHF0:USTF0_20240923
["timestamp","ask_amount","ask_price","bid_price","bid_amount"]
[1727080944074,0.37811,2644.8,2644.5,31.77]
[1727080944277,0.37811,2644.8,2644.5,32.14815]
[1727080945278,0.3754,2644.9,2644.5,29.7]
[1727080945471,0.3754,2644.9,2644.5,0.37816]
[1727080945472,0.37813,2644.7,2644.5,0.37816]
[1727080945678,0.37812,2644.8,2644.5,0.37816]
[1727080945877,0.37812,2644.8,2644.6,0.37814]
[1727080946074,0.37813,2644.7,2644.5,0.37815]
[1727080946374,0.3754,2644.9,2644.5,2.07]
[1727080946682,0.7535,2644.9,2644.5,2.07]
[1727080946870,0.7535,2644.9,2644.7,0.37812]
[1727080947065,0.3754,2644.9,2644.8,0.37811]
[1727080947776,0.3754,2644.9,2644.8,0.77491]
[1727080948263,0.7535,2644.9,2644.8,0.3968]
[1727080948877,0.7535,2644.9,2644.7,2.83532]
[1727080949175,0.7535,2644.9,2644.7,2.44812]
[1727080949376,0.7535,2644.9,2644.7,0.37812]
[1727080949770,0.7535,2644.9,2644.8,0.37811]
[1727080950174,0.37811,2644.8,2644.6,0.37814]
[1727080950480,0.3754,2644.9,2644.3,0.99047728]
[1727080950481,0.37817,2644.4,2644.3,0.99047728]
[1727080950671,4.15313,2644.7,2644.1,5.75897728]
[1727080950672,0.37819,2644.3,2644.1,5.75897728]
[1727080951275,0.3782,2644.2,2644.1,4.98227728]
[1727080951469,1.70863,2644.5,2644.1,0.77501]
[1727080951470,4.91643,2644.5,2644.1,0.77501]
[1727080951676,0.3782,2644.2,2644.1,3.6046]
[1727080951874,0.3782,2644.2,2644.1,0.3968]
[1727080953478,0.37823,2644.0,2643.8,3.81912728]
[1727080954086,0.37824,2643.9,2643.8,33.14087728]
[1727080954479,0.37824,2643.9,2643.8,32.1504]
[1727080954779,0.37824,2644.0,2643.8,32.1504]
[1727080954978,0.75824,2644.0,2643.8,32.1504]
[1727080955382,0.37824,2643.9,2643.8,32.1504]
[1727080955685,0.75824,2644.0,2643.8,32.1504]
[1727080956179,0.38,2644.0,2643.8,30.0804]
[1727080956569,0.37824,2643.9,2643.8,30.0804]
[1727080956780,0.75824,2644.0,2643.8,30.0804]
[1727080956982,0.75824,2644.0,2643.8,30.45866]
[1727080958481,0.38,2644.0,2643.7,3.2078]
[1727080959490,0.37826,2643.8,2643.7,3.2078]
[1727080959788,0.38,2644.0,2643.7,3.2078]
[1727080959789,0.37825,2643.9,2643.7,3.58607]
[1727080959986,0.37819,2644.3,2643.8,2.07]
[1727080960279,0.3782,2644.2,2644.0,0.37822]
[1727080961073,0.37822,2644.1,2643.9,0.37824]
[1727080961478,0.37823,2644.0,2643.8,3.54825]
[1727080962583,0.37823,2644.0,2643.8,4.53872728]
[1727080963184,0.37822,2644.1,2643.9,0.37824]
[1727080963378,0.37824,2643.9,2643.8,0.3619]
[1727080963684,0.94557,2644.1,2643.6,0.99047728]
[1727080963685,0.786,2644.0,2643.6,0.99047728]
[1727080963879,0.37827,2643.7,2643.5,33.90626728]
[1727080964183,0.37827,2643.7,2643.5,32.91579]
[1727080964385,0.37827,2643.7,2643.6,0.37829]
[1727080964582,0.37827,2643.7,2643.5,33.90626728]
[1727080964979,0.37827,2643.7,2643.6,0.37829]
[1727080966180,0.37828,2643.7,2643.6,0.37828]
[1727080966485,0.74577,2643.8,2643.6,0.37828]
[1727080967082,0.74577,2643.8,2643.6,1.36875728]
[1727080967284,0.37827,2643.7,2643.6,0.37828]
[1727080967896,0.37825,2643.9,2643.7,0.37827]
[1727080968187,0.37825,2643.9,2643.7,2.44826]
[1727080969087,0.786,2644.0,2643.7,2.44826]
[1727080969388,0.37826,2643.8,2643.7,2.07]
[1727080969893,0.786,2644.0,2643.7,2.07]
[1727080969894,0.37825,2643.9,2643.7,2.07]
[1727080970190,0.786,2644.0,2643.7,2.07]
[1727080970191,0.76934,2644.0,2643.9,0.37824]
[1727080970590,0.3911,2644.0,2643.9,0.37824]
[1727080971290,0.76933,2644.0,2643.9,0.37824]
[1727080973195,0.37824,2643.9,2643.8,0.75035]
[1727080974496,0.37827,2643.7,2643.6,0.99047728]
[1727080974696,0.94562,2643.9,2643.5,0.99047728]
[1727080974697,0.37829,2643.6,2643.5,0.99047728]
[1727080974902,0.37829,2643.6,2643.5,1.36876728]
[1727080975101,0.37829,2643.6,2643.5,0.37829]
[1727080975410,0.75528,2643.7,2643.6,0.37829]
[1727080975606,0.37829,2643.6,2643.5,1.36876728]
[1727080975911,0.75528,2643.7,2643.6,0.37829]
[1727080976407,0.37829,2643.6,2643.5,1.36876728]
[1727080976607,0.75528,2643.7,2643.6,0.37829]
[1727080977803,0.37829,2643.6,2643.5,0.99047728]
[1727080978008,0.3783,2643.5,2643.4,0.99047728]
[1727080978307,0.37831,2643.4,2643.3,31.84837728]
[1727080978509,0.37831,2643.4,2643.3,32.22670728]
[1727080978822,1.33859,2643.5,2643.1,0.99047728]
[1727080979004,0.37834,2643.2,2643.1,0.99047728]
[1727080979209,0.37834,2643.2,2643.1,30.69047728]
[1727080979614,0.37834,2643.2,2643.1,29.7]
[1727080980418,0.37833,2643.4,2643.2,0.37834]
[1727080980617,0.37833,2643.4,2643.2,0.75664]
[1727080980816,0.3928,2643.5,2643.2,0.3783]
[1727080980817,0.37833,2643.3,2643.2,0.3783]
[1727080981531,0.37833,2643.4,2643.2,0.75664]
[1727080981826,0.37833,2643.3,2643.2,0.3783]
[1727080982319,0.37834,2643.2,2643.1,29.7]
[1727080982519,0.74394,2643.2,2643.1,29.7]
[1727080982824,0.37836,2643.1,2643.0,3.2078]
[1727080983022,0.75666,2643.1,2643.0,3.2078]
[1727080983237,0.75666,2643.1,2643.0,32.9078]
[1727080983421,0.37837,2643.0,2642.9,0.3788]
[1727080983911,0.37837,2643.0,2642.9,30.0788]
[1727080984816,0.3783,2643.1,2642.9,30.0788]
[1727080984817,0.75667,2643.1,2642.9,0.75719]
[1727080985012,0.3656,2643.2,2643.0,0.37837]
[1727080985013,0.37835,2643.2,2643.0,0.37837]
[1727080985516,0.374,2643.4,2643.0,0.37837]
[1727080985517,0.37836,2643.1,2643.0,0.37837]
[1727080985826,0.37837,2643.1,2642.9,2.82719]
[1727080986214,0.37837,2643.1,2642.9,0.75719]
[1727080986418,0.37839,2642.9,2642.8,30.0653]
[1727080986614,0.37839,2642.9,2642.8,29.7]
[1727080986914,0.3784,2642.8,2642.7,0.3866]
[1727080987529,0.3784,2642.8,2642.7,29.7]
[1727080987823,7.93781,2642.8,2642.4,0.3896]
[1727080988125,0.37844,2642.5,2642.4,0.3896]
[1727080989331,0.37844,2642.5,2642.3,0.7952]
[1727080989518,0.77674,2642.5,2642.3,0.7952]
[1727080989717,0.77674,2642.5,2642.3,1.17367]
[1727080989917,0.77674,2642.5,2642.3,0.7952]
[1727080990419,0.77674,2642.5,2642.3,1.17367]
[1727080990922,0.3983,2642.5,2642.1,33.2974]
[1727080991221,0.37849,2642.2,2642.1,30.0896]
[1727080991422,0.37849,2642.2,2642.1,29.7]
[1727080991726,0.3828,2642.4,2642.1,30.0785]
[1727080992029,0.3983,2642.5,2642.3,0.37846]
[1727080992225,0.77674,2642.5,2642.4,0.3853]
[1727080993119,0.3983,2642.5,2642.4,0.76376]
[1727080993426,0.74804,2642.6,2642.5,0.37844]
[1727080993427,0.3696,2642.6,2642.5,0.37844]
[1727080993619,0.3696,2642.6,2642.4,0.7536]
[1727080993922,0.74804,2642.6,2642.4,1.13205]
[1727080994135,0.37844,2642.5,2642.4,0.7536]
[1727080995524,0.74804,2642.6,2642.4,1.13205]
[1727080996215,0.74804,2642.6,2642.4,0.7536]
[1727080996529,0.74804,2642.6,2642.4,1.13205]
[1727080996530,0.37844,2642.5,2642.4,1.13205]
[1727080996731,0.37844,2642.5,2642.4,0.7536]
[1727080997427,0.3696,2642.6,2642.4,0.37845]
[1727080997428,0.74804,2642.6,2642.4,0.37845]
[1727080997627,0.37844,2642.5,2642.4,0.37845]
[1727080998126,0.37844,2642.5,2642.3,1.1062]
[1727080998327,0.37844,2642.5,2642.4,0.37846]
[1727080999528,0.3696,2642.6,2642.4,0.37845]
[1727080999831,0.37845,2642.5,2642.4,0.37845]
[1727081000327,0.3696,2642.6,2642.5,0.37844]
[1727081000528,3.58622,2642.7,2642.6,0.37843]
[1727081000529,0.37842,2642.7,2642.6,0.37843]
[1727081000823,0.37842,2642.7,2642.6,0.37842]
[1727081002028,0.94604,2642.7,2642.3,4.69247]
[1727081002226,0.37846,2642.5,2642.3,1.1062]
[1727081002528,0.37846,2642.4,2642.3,1.1062]
[1727081003231,0.37846,2642.4,2642.3,0.369]
[1727081003437,0.37845,2642.5,2642.3,0.369]
[1727081003636,0.37846,2642.4,2642.3,0.369]
[1727081004522,0.37849,2642.2,2642.1,30.4462]
[1727081004919,0.37849,2642.2,2642.1,34.231]
[1727081005436,0.37849,2642.2,2642.1,30.0626]
[1727081007529,0.74988,2642.3,2642.1,30.4411]
[1727081009933,0.37848,2642.3,2642.1,30.4411]
[1727081010731,0.37849,2642.2,2642.1,30.4411]
[1727081010925,0.3876,2642.4,2642.1,30.4411]
[1727081010926,0.37848,2642.3,2642.1,30.4411]
[1727081013037,0.37849,2642.2,2642.1,30.0626]
[1727081013239,0.37849,2642.2,2642.1,29.7]
[1727081013532,1.32471,2642.2,2642.1,29.7]
[1727081014130,0.37849,2642.2,2642.1,29.7]
[1727081015938,1.32471,2642.2,2642.1,29.7]
[1727081016141,1.71711,2642.2,2642.1,29.7]
[1727081017740,0.37857,2641.7,2641.5,0.99047728]
[1727081018237,0.37857,2641.7,2641.4,4.3299]
[1727081018238,0.37857,2641.7,2641.6,29.7]
[1727081019642,0.75665,2641.8,2641.6,29.7]
[1727081019842,0.3781,2641.8,2641.6,29.7]
[1727081020138,0.75665,2641.8,2641.6,29.7]
[1727081020738,0.37856,2641.7,2641.6,29.7]
[1727081021040,0.75665,2641.8,2641.6,30.07857]
[1727081021338,0.37856,2641.7,2641.6,29.7]
[1727081021935,0.3781,2641.8,2641.5,0.99047728]
[1727081021936,0.37857,2641.6,2641.5,0.99047728]
[1727081022136,0.3781,2641.8,2641.4,3.5697]
[1727081022137,0.37859,2641.5,2641.4,1.35237728]
[1727081022331,0.37859,2641.5,2641.4,0.3619]
[1727081022535,0.3786,2641.4,2641.3,0.99047728]
[1727081022843,0.37868,2640.9,2640.6,2.09937728]
[1727081023030,0.3787,2640.8,2640.6,1.1089]
[1727081023337,0.3787,2640.8,2640.6,0.7435]
[1727081023338,0.3787,2640.7,2640.6,0.7435]
[1727081023543,0.7756,2640.8,2640.6,0.7435]
[1727081023741,0.3787,2640.7,2640.4,0.99047728]
[1727081023947,0.37872,2640.6,2640.3,1.73462728]
[1727081024433,0.37871,2640.7,2640.3,0.74415]
[1727081024636,0.3787,2640.7,2640.3,0.74415]
[1727081025241,0.3787,2640.7,2640.4,0.37874]
[1727081025433,0.3787,2640.7,2640.3,0.74415]
[1727081027148,0.3787,2640.7,2640.3,3.95195]
[1727081027540,0.7756,2640.8,2640.3,3.5732]
[1727081027541,0.37874,2640.5,2640.3,3.5732]
[1727081027841,0.37874,2640.4,2640.3,3.2078]
[1727081028144,0.37876,2640.3,2640.2,29.7]
[1727081028347,0.74876,2640.3,2640.0,0.3849]
[1727081028639,0.74876,2640.3,2640.0,0.7637]
[1727081028840,0.74876,2640.3,2640.1,29.7]
[1727081029431,0.74876,2640.3,2640.0,0.76369]
[1727081029432,3.2078,2640.6,2640.0,0.3849]
[1727081029632,0.37872,2640.6,2640.3,0.37875]
[1727081029840,0.37872,2640.6,2640.4,30.0684]
[1727081030349,0.74871,2640.7,2640.4,30.44714]
[1727081030545,0.37872,2640.6,2640.5,0.3902]
[1727081031248,0.74871,2640.7,2640.5,0.3902]
[1727081031546,0.37,2640.7,2640.5,0.76892]
[1727081031845,0.3787,2640.7,2640.5,1.14622]
[1727081032841,2.4665,2641.0,2640.7,0.3787]
[1727081033044,0.37865,2641.1,2640.5,6.0453]
[1727081033249,0.788,2641.2,2640.9,0.37866]
[1727081033546,0.37865,2641.1,2640.9,0.37866]
[1727081033750,0.77664,2641.2,2640.9,0.37866]
[1727081034245,0.37865,2641.1,2640.5,6.0453]
[1727081034450,0.37865,2641.1,2640.8,0.37868]
[1727081034843,0.37865,2641.1,2640.9,0.37867]
[1727081035748,0.77664,2641.2,2641.0,0.77156]
[1727081036147,0.77663,2641.2,2641.0,0.77155]
[1727081036746,3.2078,2641.3,2641.0,0.3929]
[1727081037049,3.2078,2641.3,2641.2,0.37863]
[1727081037251,3.2078,2641.3,2641.1,0.763]
[1727081037252,3.58642,2641.3,2641.1,0.763]
[1727081037462,0.37863,2641.2,2641.1,0.763]
[1727081037960,0.37864,2641.1,2641.0,0.3929]
[1727081038266,0.76094,2641.1,2641.0,0.3929]
[1727081040358,0.76094,2641.1,2640.9,0.37867]
[1727081040653,0.76094,2641.1,2640.6,0.763]
[1727081040654,0.37867,2641.0,2640.8,0.37868]
[1727081040866,0.37862,2641.3,2641.0,0.37866]
[1727081041049,0.37862,2641.3,2640.7,0.3858]
[1727081041050,0.3616,2641.4,2641.3,0.37862]
[1727081041853,0.7402,2641.4,2641.2,0.76442]
[1727081042351,0.37862,2641.3,2641.2,0.3858]
[1727081042559,0.37862,2641.3,2641.2,0.76443]
[1727081042759,0.74021,2641.4,2641.2,0.76443]
[1727081043360,0.74021,2641.4,2641.3,0.37862]
[1727081044154,0.74021,2641.4,2641.2,0.3858]
[1727081044155,3.58639,2641.6,2641.4,0.37859]
[1727081044359,7.3348,2642.2,2641.5,6.9934]
[1727081044548,4.16427,2642.4,2641.9,0.37852]
[1727081044858,0.37851,2642.1,2641.8,0.37853]
[1727081045452,4.16427,2642.4,2641.8,0.37853]
[1727081045655,0.37851,2642.1,2641.9,0.37853]
[1727081045857,0.7774,2642.4,2641.7,32.1527]
[1727081046049,0.7774,2642.4,2642.2,0.37848]
[1727081046253,0.7774,2642.4,2641.8,3.5826]
[1727081046254,0.7774,2642.4,2642.1,0.37849]
[1727081046559,1.15587,2642.4,2642.1,0.37849]
[1727081047057,1.15587,2642.4,2642.2,0.37849]
[1727081047357,1.15587,2642.4,2641.8,3.5826]
[1727081047358,0.37847,2642.3,2641.8,3.5826]
[1727081047551,2.8474,2642.4,2642.0,0.37851]
[1727081047552,0.37849,2642.2,2642.0,0.37851]
[1727081048164,2.8474,2642.4,2641.8,3.5826]
[1727081048165,0.3785,2642.1,2641.9,0.37852]
[1727081048863,0.3785,2642.2,2642.0,0.37852]
[1727081049960,2.8474,2642.4,2642.0,0.37852]
[1727081050156,0.37849,2642.2,2642.0,0.37852]
[1727081050770,0.3785,2642.1,2642.0,0.37852]
[1727081052166,0.3785,2642.1,2641.9,0.37852]
[1727081052865,0.3785,2642.1,2642.0,0.37852]
[1727081055062,0.37848,2642.3,2641.7,30.0827]
[1727081055256,0.37848,2642.3,2642.1,0.37849]
[1727081055455,0.37849,2642.2,2642.1,0.37849]
[1727081056282,0.37849,2642.2,2641.7,30.0827]
[1727081056566,0.37849,2642.2,2642.0,0.3785]
[1727081057259,6.0552,2642.4,2641.8,0.94637]
[1727081057260,3.9852,2642.4,2641.8,0.94637]
[1727081057463,4.36366,2642.4,2641.9,3.2078]
[1727081057867,4.36366,2642.4,2642.0,0.3796]
[1727081058077,4.36367,2642.4,2642.3,0.37847]
[1727081058367,4.36367,2642.4,2642.0,0.3796]
[1727081058867,4.36367,2642.4,2642.2,0.37847]
[1727081059073,3.9852,2642.4,2642.3,0.37847]
[1727081059566,3.9852,2642.4,2642.0,0.3796]
[1727081059567,8.14847,2642.4,2642.0,0.3796]
[1727081059866,4.36367,2642.4,2642.0,0.3796]
[1727081060568,4.36367,2642.4,2642.3,0.37847]
[1727081060967,8.14847,2642.4,2642.3,0.37847]
[1727081061472,7.77,2642.4,2642.3,0.37847]
[1727081062573,3.9852,2642.4,2642.3,0.37847]
[1727081062971,4.36366,2642.4,2642.3,0.37847]
[1727081063271,4.36366,2642.4,2642.1,0.3911]
[1727081064172,4.36366,2642.4,2642.3,0.37847]
[1727081064774,4.36366,2642.4,2642.1,0.3911]
[1727081064973,4.36366,2642.4,2642.3,0.37847]
[1727081065682,3.9852,2642.4,2642.3,0.37847]
[1727081065867,3.5858,2642.4,2642.3,0.37847]
[1727081066069,3.5858,2642.4,2642.3,4.16327]
[1727081066070,3.2078,2642.4,2642.3,4.16327]
[1727081066579,3.2078,2642.4,2642.3,5.10946]
[1727081067079,3.2078,2642.4,2642.3,4.16327]
[1727081067281,3.2078,2642.4,2642.3,0.37847]
[1727081067768,3.02236243,2642.4,2642.3,0.37847]
[1727081068178,3.40082243,2642.4,2642.3,0.37847]
[1727081068369,0.37847,2642.3,2642.2,0.76628]
[1727081068572,3.40083243,2642.4,2642.3,0.37847]
[1727081070272,3.40083243,2642.4,2642.2,0.3878]
[1727081070273,0.37847,2642.3,2642.2,0.76628]
[1727081070579,3.02236243,2642.4,2642.3,0.37847]
[1727081072169,3.02236243,2642.4,2642.0,0.3796]
[1727081072374,3.02236243,2642.4,2642.1,0.37849]
[1727081072375,0.37849,2642.2,2642.1,0.37849]
[1727081073282,0.3785,2642.1,2642.0,0.37851]
[1727081073586,0.37851,2642.1,2642.0,0.37851]
[1727081073785,0.3876,2642.3,2641.9,0.778]
[1727081073786,0.3785,2642.2,2642.1,0.3785]
[1727081074080,0.37851,2642.1,2642.0,0.37851]
[1727081074280,0.3876,2642.3,2641.9,3.2078]
[1727081074281,0.37852,2642.0,2641.9,3.2078]
[1727081074484,0.77632,2642.0,2641.9,3.2078]
[1727081074681,0.77632,2642.0,2641.9,3.58633]
[1727081074873,0.3978,2642.0,2641.9,3.58633]
[1727081075272,0.77632,2642.0,2641.9,3.58633]
[1727081075482,0.3876,2642.3,2641.9,3.58633]
[1727081075680,0.76608,2642.3,2642.1,0.37849]
[1727081075982,0.76608,2642.3,2641.9,3.2078]
[1727081075983,1.15718,2642.3,2641.9,3.2078]
[1727081077081,1.15718,2642.3,2642.1,0.37849]
[1727081077279,0.37849,2642.2,2642.1,0.37849]
[1727081077484,0.37849,2642.2,2642.0,0.37851]
[1727081077983,0.37849,2642.2,2642.1,0.3785]
[1727081078469,0.7787,2642.3,2642.2,0.37849]
[1727081078470,1.15718,2642.3,2642.2,0.37849]
[1727081078674,1.15718,2642.3,2642.1,0.37849]
[1727081079973,1.15718,2642.3,2642.2,0.37849]
[1727081080177,0.76958,2642.3,2642.2,0.37849]
[1727081080381,0.76958,2642.3,2642.1,0.37849]
[1727081082594,0.37849,2642.2,2642.1,0.37849]
[1727081082785,0.37849,2642.2,2642.0,0.37851]
[1727081083386,0.3785,2642.1,2642.0,0.37851]
[1727081083588,0.3785,2642.2,2642.0,0.37851]
[1727081083791,0.37851,2642.1,2642.0,0.37852]
[1727081084482,4.16331,2642.1,2641.9,3.2078]
[1727081084684,5.4903,2642.0,2641.6,0.99047728]
[1727081084883,0.37854,2641.9,2641.8,0.37854]
[1727081085186,1.13772,2642.0,2641.9,0.37853]
[1727081085389,1.13772,2642.0,2641.8,0.37853]
[1727081085592,0.37853,2641.9,2641.8,0.37853]
[1727081086089,0.37853,2641.9,2641.7,0.7828]
[1727081086981,1.13772,2642.0,2641.8,0.37854]
[1727081087186,1.13772,2642.0,2641.9,0.37853]
[1727081087381,0.7592,2642.0,2641.9,0.37853]
[1727081087595,3.0162,2642.3,2642.0,0.3785]
[1727081087596,0.3785,2642.2,2642.0,0.3785]
[1727081087786,1.1379,2642.2,2642.0,0.3785]
[1727081089190,1.1379,2642.2,2642.0,0.37851]
[1727081089896,1.1379,2642.2,2642.0,1.36898728]
[1727081090289,1.1379,2642.2,2642.1,1.36037728]
[1727081091695,1.1379,2642.2,2642.1,1.73887728]
[1727081092288,1.1379,2642.2,2642.1,1.36037728]
[1727081092490,1.32476,2642.1,2642.0,0.99047728]
[1727081092691,0.37853,2641.9,2641.8,0.99047728]
[1727081093100,0.37854,2641.8,2641.7,0.99047728]
[1727081093291,1.14964,2641.8,2641.7,0.99047728]
[1727081093502,0.37856,2641.7,2641.6,0.99047728]
[1727081093703,4.56016,2641.7,2641.4,0.99047728]
[1727081093996,0.3786,2641.5,2641.3,0.99047728]
[1727081094404,0.7614,2641.4,2641.3,0.99047728]
[1727081094697,0.7614,2641.4,2641.2,0.99047728]
[1727081095297,0.3828,2641.4,2641.2,0.99047728]
[1727081095689,0.3828,2641.4,2641.2,1.36910728]
[1727081095904,0.3828,2641.4,2641.2,0.99047728]
[1727081096996,0.3828,2641.4,2641.1,4.57691728]
[1727081097194,0.3828,2641.4,2641.1,3.58644]
[1727081097394,0.3828,2641.4,2641.2,0.37862]
[1727081097593,0.3828,2641.4,2641.3,0.37862]
[1727081097788,0.37858,2641.6,2641.3,0.37862]
[1727081098305,0.37858,2641.6,2641.4,0.376]
[1727081099297,1.15636,2641.7,2641.4,0.7546]
[1727081099493,1.15636,2641.7,2641.4,0.75459]
[1727081100894,0.37858,2641.6,2641.4,0.376]
[1727081101391,0.37859,2641.5,2641.4,0.376]
[1727081101796,0.7778,2641.7,2641.1,4.19827728]
[1727081101996,0.37862,2641.3,2641.1,0.99047728]
[1727081102199,0.7639,2641.2,2641.0,0.99047728]
[1727081102399,0.37866,2641.0,2640.8,4.19827728]
[1727081102704,1.1317,2641.2,2640.8,4.19827728]
[1727081102705,0.37867,2640.9,2640.8,3.2078]
[1727081102902,0.37866,2641.0,2640.8,3.58648]
[1727081103097,0.37866,2641.0,2640.8,3.2078]
[1727081103506,2.07,2640.9,2640.7,0.99047728]
[1727081103801,2.07,2640.9,2640.6,1.52191]
[1727081104002,2.07,2640.9,2640.6,1.1432]
[1727081104193,2.07,2640.9,2640.4,4.19827728]
[1727081104395,0.37873,2640.5,2640.4,3.2078]
[1727081104601,0.37873,2640.5,2640.3,0.3831]
[1727081104804,1.12532,2640.6,2640.3,0.76186]
[1727081104996,3.2078,2640.9,2640.4,2.07]
[1727081105197,0.37868,2640.9,2640.7,0.3787]
[1727081105700,3.67966,2641.0,2640.7,0.3787]
[1727081105898,0.74305,2641.1,2640.9,0.37866]
[1727081106097,0.37864,2641.2,2640.9,0.37866]
[1727081106301,0.37864,2641.1,2641.0,1.1781]
[1727081106898,0.7797,2641.3,2641.0,1.55676]
[1727081106899,0.37864,2641.2,2641.0,1.55676]
[1727081107808,0.37864,2641.1,2641.0,1.1781]
[1727081108899,0.37864,2641.2,2641.0,1.1781]
[1727081109309,0.37864,2641.2,2641.0,1.55676]
[1727081109501,0.37864,2641.2,2641.0,1.1781]
[1727081110002,0.7797,2641.3,2641.1,0.37864]
[1727081110003,0.3975,2641.3,2641.1,0.37864]
[1727081110201,0.74301,2641.4,2641.1,0.37864]
[1727081110404,3.2078,2642.3,2641.2,12.3652]
[1727081110608,1.1776,2642.3,2641.6,0.94644]
[1727081110803,2.07,2642.6,2642.2,0.37849]
[1727081110804,0.37845,2642.5,2642.2,0.37849]
[1727081111005,0.37845,2642.5,2642.2,0.37848]
[1727081111401,0.37848,2642.3,2642.0,2.07]
[1727081111698,0.37848,2642.3,2641.8,6.26827728]
[1727081112008,0.37848,2642.3,2642.1,0.3785]
[1727081113015,2.4674,2642.6,2641.8,8.5788]
[1727081113401,2.4674,2642.6,2641.8,6.26827728]
[1727081113610,0.37848,2642.3,2642.0,0.37851]
[1727081115507,2.4674,2642.6,2642.0,0.37851]
[1727081115710,0.37848,2642.3,2642.0,0.37851]
[1727081115905,0.37847,2642.3,2641.8,3.2078]
[1727081116108,0.7359,2642.2,2641.8,3.2078]
[1727081116313,0.3709,2642.1,2641.8,3.2078]
[1727081117404,0.3709,2642.1,2641.9,0.37853]
[1727081117608,0.3709,2642.1,2641.8,3.2078]
[1727081117811,0.3709,2642.1,2642.0,0.37852]
[1727081118015,0.3654,2642.2,2641.8,3.2078]
[1727081118208,0.3654,2642.2,2642.0,0.3785]
[1727081118413,0.74936,2642.4,2641.8,3.2078]
[1727081118719,0.74936,2642.4,2642.2,0.37849]
[1727081119219,0.37853,2641.9,2641.8,3.2078]
[1727081119409,5.8548,2642.3,2641.7,0.7538]
[1727081119410,0.37852,2642.0,2641.7,0.7538]
[1727081119609,0.37854,2641.9,2641.7,1.13236]
[1727081120117,0.37852,2642.0,2641.7,1.13236]
[1727081120413,0.3619,2642.1,2641.8,0.37854]
[1727081120414,0.74041,2642.1,2641.8,0.37854]
[1727081120624,0.3619,2642.1,2641.8,0.37854]
[1727081120821,0.37852,2642.0,2641.7,1.13235]
[1727081121520,0.37852,2642.0,2641.8,0.37854]
[1727081122019,0.37852,2642.0,2641.7,1.13235]
[1727081122315,0.37854,2641.9,2641.7,0.7538]
[1727081122521,0.37854,2641.9,2641.7,1.13236]
[1727081123020,0.37856,2641.7,2641.4,4.59777728]
[1727081123223,0.37856,2641.7,2641.4,5.38207728]
[1727081123720,0.37859,2641.5,2641.4,2.17427728]
[1727081123905,0.37859,2641.5,2641.4,0.7843]
[1727081124110,0.76548,2641.6,2641.4,0.7843]
[1727081124312,0.3869,2641.6,2641.4,0.7843]
[1727081124509,0.3869,2641.6,2641.4,1.1629]
[1727081124819,0.76547,2641.6,2641.4,0.7843]
[1727081125118,0.3869,2641.6,2641.4,0.7843]
[1727081125319,0.37859,2641.5,2641.4,0.7843]
[1727081126016,0.37859,2641.5,2641.2,1.36910728]
[1727081127522,0.76548,2641.6,2641.3,0.37861]
[1727081128209,0.37859,2641.5,2641.2,1.36909728]
[1727081128617,0.3869,2641.6,2641.2,0.99047728]
[1727081129122,0.76548,2641.6,2641.3,0.37861]
[1727081129320,0.37859,2641.5,2641.3,0.37861]
[1727081130316,0.76548,2641.6,2641.3,0.37861]
[1727081130518,0.3869,2641.6,2641.2,0.99047728]
[1727081131027,0.37859,2641.5,2641.2,0.99047728]
[1727081131417,0.37859,2641.5,2641.3,0.37861]
[1727081132026,0.37859,2641.5,2641.2,1.36909728]
[1727081132224,0.37859,2641.5,2641.3,0.37862]
[1727081132923,0.37859,2641.5,2641.2,1.36909728]
[1727081133525,0.37859,2641.5,2641.3,0.37861]
[1727081134028,0.76548,2641.6,2641.3,0.37861]
[1727081134525,0.37859,2641.5,2641.2,1.36909728]
[1727081134726,0.37859,2641.5,2641.3,0.37861]
[1727081135227,0.37859,2641.5,2641.3,1.36908728]
[1727081135617,0.37859,2641.5,2641.3,0.99047728]
[1727081135819,0.3786,2641.4,2641.3,0.99047728]
[1727081136026,0.3786,2641.5,2641.3,0.99047728]
[1727081136217,0.3786,2641.4,2641.3,0.99047728]
[1727081136418,0.3786,2641.4,2641.2,1.36910728]
[1727081136926,1.33336,2641.6,2641.2,0.99047728]
[1727081137119,0.37861,2641.4,2641.2,1.36910728]
[1727081137525,0.37861,2641.4,2641.3,0.37862]
[1727081137822,0.3869,2641.6,2641.5,0.37859]
[1727081138024,0.77144,2641.9,2641.5,5.2778]
[1727081138230,0.77144,2641.9,2641.7,0.37855]
[1727081138933,0.37854,2641.8,2641.6,1.52536]
[1727081139127,0.37854,2641.8,2641.7,0.37856]
[1727081139523,0.37854,2641.8,2641.6,1.52537]
[1727081140430,0.37856,2641.7,2641.6,1.1468]
[1727081140726,0.37858,2641.6,2641.4,1.36907728]
[1727081140923,0.37858,2641.6,2641.4,0.77]
[1727081141526,0.37857,2641.6,2641.5,0.37858]
[1727081141728,4.5055,2642.2,2641.5,6.22427]
[1727081141928,1.1458,2642.4,2642.1,0.37849]
[1727081142229,1.52426,2642.4,2642.1,0.37849]
[1727081142432,0.37847,2642.3,2642.2,0.3914]
[1727081143533,0.3785,2642.2,2642.0,1.12391]
[1727081143733,0.3785,2642.2,2642.0,1.50031]
[1727081144230,0.37842,2642.7,2642.4,0.37844]
[1727081144531,0.7631,2642.8,2642.6,2.07]
[1727081144739,7.3348,2643.3,2642.9,0.37838]
[1727081144740,4.127,2643.3,2642.9,0.37838]